[Event "*** SCC Grand Prix: Titled Tuesday Blitz"]
[Site "Chess.com"]
[Date "2020.09.08"]
[Round "4"]
[White "alejogarcia1999"]
[Black "GregShahade"]
[Result "0-1"]
[WhiteElo "2362"]
[BlackElo "2599"]
[TimeControl "180+1"]
[EndTime "10:40:41 PDT"]
[Termination "GregShahade won by resignation"]

1. Nf3 {[%clk 0:02:57.9]} 1... Nf6 {[%clk 0:02:58.9]} 2. g3 {[%clk 0:02:58.7]}
2... g6 {[%clk 0:02:58.1]} 3. Bg2 {[%clk 0:02:59.6]} 3... Bg7 {[%clk 0:02:58.7]}
4. O-O {[%clk 0:03:00.5]} 4... O-O {[%clk 0:02:59.3]} 5. c4 {[%clk 0:03:00.3]}
5... d5 {[%clk 0:02:59.8]} 6. cxd5 {[%clk 0:02:59.8]} 6... Nxd5 {[%clk
0:03:00.7]} 7. Nc3 {[%clk 0:02:58.8]} 7... Nb6 {[%clk 0:03:00.9]} 8. b3 {[%clk
0:02:57.7]} 8... a5 {[%clk 0:02:55.5]} 9. Bb2 {[%clk 0:02:52.1]} 9... Nc6 {[%clk
0:02:52.5]} 10. Qc1 {[%clk 0:02:41.3]} 10... a4 {[%clk 0:02:45.6]} 11. Rd1
{[%clk 0:02:26.3]} 11... axb3 {[%clk 0:02:32.3]} 12. axb3 {[%clk 0:02:24.9]}
12... Be6 {[%clk 0:02:32.6]} 13. Rxa8 {[%clk 0:02:06.8]} 13... Qxa8 {[%clk
0:02:31.8]} 14. Nb5 {[%clk 0:02:06.7]} 14... Bxb3 {[%clk 0:02:26]} 15. Bxg7
{[%clk 0:02:05.8]} 15... Bxd1 {[%clk 0:02:11.1]} 16. Bxf8 {[%clk 0:01:59.9]}
16... Bxe2 {[%clk 0:02:10.7]} 17. Nfd4 {[%clk 0:01:56.8]} 17... Bxb5 {[%clk
0:02:06.7]} 18. Nxb5 {[%clk 0:01:56.2]} 18... Kxf8 {[%clk 0:01:40]} 19. Nxc7
{[%clk 0:01:54]} 19... Qd8 {[%clk 0:01:37.7]} 20. Nb5 {[%clk 0:01:48.2]} 20...
Kg8 {[%clk 0:01:00.9]} 21. Bxc6 {[%clk 0:01:11.1]} 21... bxc6 {[%clk 0:01:01.8]}
22. Qxc6 {[%clk 0:01:10.5]} 22... Nd5 {[%clk 0:01:02.4]} 23. d4 {[%clk
0:00:57.9]} 23... h5 {[%clk 0:01:01.2]} 24. h4 {[%clk 0:00:57.1]} 24... Nf6
{[%clk 0:01:00.7]} 25. Qc5 {[%clk 0:00:46.6]} 25... Qd7 {[%clk 0:00:48.6]} 26.
Nc3 {[%clk 0:00:44.9]} 26... Qe6 {[%clk 0:00:39.9]} 27. Kg2 {[%clk 0:00:43.8]}
27... Qb3 {[%clk 0:00:25.9]} 28. Qxe7 {[%clk 0:00:39.8]} 28... Ng4 {[%clk
0:00:18.6]} 29. Qc5 {[%clk 0:00:35.1]} 29... Qe6 {[%clk 0:00:17.7]} 30. d5
{[%clk 0:00:33]} 30... Qf6 {[%clk 0:00:17.8]} 31. d6 {[%clk 0:00:32.7]} 31...
Ne5 {[%clk 0:00:17.6]} 32. Qd4 {[%clk 0:00:32.2]} 32... Qf3+ {[%clk 0:00:16]}
33. Kg1 {[%clk 0:00:32.1]} 33... Qf5 {[%clk 0:00:11.2]} 34. Kg2 {[%clk
0:00:31.1]} 34... Qf3+ {[%clk 0:00:11.3]} 35. Kf1 {[%clk 0:00:30.9]} 35... Qh1+
{[%clk 0:00:10.5]} 36. Ke2 {[%clk 0:00:30.9]} 36... Qf3+ {[%clk 0:00:11.1]} 37.
Kd2 {[%clk 0:00:30.7]} 37... Qf5 {[%clk 0:00:11.7]} 38. f4 {[%clk 0:00:30.4]}
38... Nf3+ {[%clk 0:00:11.8]} 39. Ke3 {[%clk 0:00:30]} 39... Nxd4 {[%clk
0:00:12.3]} 40. Kxd4 {[%clk 0:00:30.9]} 40... Kf8 {[%clk 0:00:11.2]} 41. Ne4
{[%clk 0:00:31.8]} 41... Ke8 {[%clk 0:00:10.8]} 42. Ke3 {[%clk 0:00:32.7]} 42...
Kd8 {[%clk 0:00:10.6]} 43. Kd4 {[%clk 0:00:33.6]} 43... Qe6 {[%clk 0:00:10.6]}
44. Ke3 {[%clk 0:00:34.5]} 44... Qb3+ {[%clk 0:00:10.2]} 45. Kd4 {[%clk
0:00:34.5]} 45... Qb2+ {[%clk 0:00:10.7]} 46. Kd5 {[%clk 0:00:34.5]} 46... Qg2
{[%clk 0:00:11.5]} 47. Ke5 {[%clk 0:00:34.6]} 47... f5 {[%clk 0:00:11.5]} 48.
Ng5 {[%clk 0:00:32.9]} 48... Qxg3 {[%clk 0:00:10.2]} 49. Kf6 {[%clk 0:00:33.8]}
49... Qxh4 {[%clk 0:00:08.9]} 50. Kxg6 {[%clk 0:00:34.7]} 50... Kd7 {[%clk
0:00:09]} 51. Kxf5 {[%clk 0:00:34.6]} 51... Kxd6 {[%clk 0:00:08.8]} 52. Ne4+
{[%clk 0:00:35.3]} 52... Ke7 {[%clk 0:00:08.8]} 53. Ng5 {[%clk 0:00:36.2]} 53...
Qg4+ {[%clk 0:00:09]} 54. Kg6 {[%clk 0:00:37.1]} 54... h4 {[%clk 0:00:08.6]} 55.
f5 {[%clk 0:00:38]} 55... Qf4 {[%clk 0:00:07.1]} 56. f6+ {[%clk 0:00:38.9]}
56... Qxf6+ {[%clk 0:00:07]} 57. Kh5 {[%clk 0:00:39.8]} 57... Qxg5+ {[%clk
0:00:07.6]} 58. Kxg5 {[%clk 0:00:39.7]} 58... h3 {[%clk 0:00:08.5]} 59. Kg4
{[%clk 0:00:40.1]} 59... h2 {[%clk 0:00:09.4]} 60. Kg3 {[%clk 0:00:41]} 60...
h1=Q {[%clk 0:00:09.6]} 61. Kg4 {[%clk 0:00:41.4]} 61... Qf1 {[%clk 0:00:09.5]}
0-1

[Event "*** SCC Grand Prix: Titled Tuesday Blitz"]
[Site "Chess.com"]
[Date "2020.09.08"]
[Round "4"]
[White "ChelsieMonica"]
[Black "esrosenberg"]
[Result "1-0"]
[WhiteElo "2423"]
[BlackElo "2246"]
[TimeControl "180+1"]
[EndTime "10:40:46 PDT"]
[Termination "ChelsieMonica won by checkmate"]

1. e4 {[%clk 0:03:00.9]} 1... e5 {[%clk 0:02:59.6]} 2. Nf3 {[%clk 0:02:59.7]}
2... Nc6 {[%clk 0:02:59.7]} 3. Bb5 {[%clk 0:02:59]} 3... a6 {[%clk 0:03:00]} 4.
Bxc6 {[%clk 0:02:58.8]} 4... dxc6 {[%clk 0:02:59.9]} 5. O-O {[%clk 0:02:56.4]}
5... f6 {[%clk 0:02:56.4]} 6. d3 {[%clk 0:02:53.5]} 6... Bg4 {[%clk 0:02:51.7]}
7. h3 {[%clk 0:02:52.9]} 7... Bh5 {[%clk 0:02:51.7]} 8. Be3 {[%clk 0:02:45.9]}
8... Bd6 {[%clk 0:02:38.7]} 9. Nbd2 {[%clk 0:02:45]} 9... Qd7 {[%clk 0:02:38.6]}
10. Qe1 {[%clk 0:02:31.9]} 10... Ne7 {[%clk 0:02:36.7]} 11. Nh2 {[%clk
0:02:28.6]} 11... O-O-O {[%clk 0:02:31.6]} 12. f4 {[%clk 0:02:09.8]} 12... exf4
{[%clk 0:02:30]} 13. Bxf4 {[%clk 0:02:06.2]} 13... Bxf4 {[%clk 0:02:28.6]} 14.
Rxf4 {[%clk 0:02:02.3]} 14... Rhe8 {[%clk 0:02:29]} 15. Nb3 {[%clk 0:01:57.5]}
15... Qd6 {[%clk 0:02:21]} 16. Rf2 {[%clk 0:01:54.3]} 16... Bf7 {[%clk
0:02:15.5]} 17. Nf3 {[%clk 0:01:41.7]} 17... Kb8 {[%clk 0:02:15.4]} 18. Qc3
{[%clk 0:01:34.2]} 18... Ng6 {[%clk 0:02:08.3]} 19. Nfd4 {[%clk 0:01:25.4]}
19... c5 {[%clk 0:01:59.6]} 20. Nf5 {[%clk 0:01:22]} 20... Qe5 {[%clk
0:01:45.4]} 21. Nxg7 {[%clk 0:01:00.9]} 21... Rg8 {[%clk 0:01:31.9]} 22. Qxe5
{[%clk 0:00:58.4]} 22... Nxe5 {[%clk 0:01:29.8]} 23. Nf5 {[%clk 0:00:58.1]}
23... b6 {[%clk 0:01:26.6]} 24. Nh6 {[%clk 0:00:56.8]} 24... Rg6 {[%clk
0:01:20.3]} 25. Nxf7 {[%clk 0:00:56.9]} 25... Nxf7 {[%clk 0:01:21.2]} 26. Nd2
{[%clk 0:00:56.1]} 26... Rdg8 {[%clk 0:01:21.1]} 27. Kh2 {[%clk 0:00:56.1]}
27... Rh6 {[%clk 0:01:15.3]} 28. Raf1 {[%clk 0:00:56]} 28... Ne5 {[%clk
0:01:15.6]} 29. Rf4 {[%clk 0:00:48.8]} 29... Ng4+ {[%clk 0:01:09.3]} 30. Kh1
{[%clk 0:00:47.5]} 30... Ne3 {[%clk 0:01:09.4]} 31. R1f2 {[%clk 0:00:46.2]}
31... Nd1 {[%clk 0:01:06.4]} 32. R2f3 {[%clk 0:00:40.8]} 32... Rgg6 {[%clk
0:01:03.3]} 33. Nc4 {[%clk 0:00:36.7]} 33... b5 {[%clk 0:00:58.7]} 34. Ne3
{[%clk 0:00:36.1]} 34... Nxb2 {[%clk 0:00:54.9]} 35. Ng4 {[%clk 0:00:34.6]}
35... Rh4 {[%clk 0:00:49.9]} 36. Nxf6 {[%clk 0:00:34.2]} 36... Rxf4 {[%clk
0:00:50]} 37. Rxf4 {[%clk 0:00:35.1]} 37... c4 {[%clk 0:00:46.5]} 38. Nd7+
{[%clk 0:00:31.5]} 38... Kb7 {[%clk 0:00:40.9]} 39. d4 {[%clk 0:00:30.7]} 39...
Rd6 {[%clk 0:00:37.7]} 40. Nc5+ {[%clk 0:00:30.8]} 40... Kb6 {[%clk 0:00:36.2]}
41. e5 {[%clk 0:00:31.7]} 41... Rd5 {[%clk 0:00:34.1]} 42. e6 {[%clk 0:00:31.9]}
42... Rd8 {[%clk 0:00:20.1]} 43. e7 {[%clk 0:00:31.8]} 43... Re8 {[%clk
0:00:20.6]} 44. Re4 {[%clk 0:00:28.6]} 44... Kc6 {[%clk 0:00:19.5]} 45. Nxa6
{[%clk 0:00:22.9]} 45... Kd6 {[%clk 0:00:18.5]} 46. d5 {[%clk 0:00:20.1]} 46...
Nd1 {[%clk 0:00:16.9]} 47. Re6+ {[%clk 0:00:19.4]} 47... Kd7 {[%clk 0:00:15.9]}
48. Nc5+ {[%clk 0:00:18.9]} 48... Kc8 {[%clk 0:00:16.4]} 49. Kg1 {[%clk
0:00:18.6]} 49... Nc3 {[%clk 0:00:15.3]} 50. Rf6 {[%clk 0:00:18]} 50... Nxd5
{[%clk 0:00:05.8]} 51. Rf8 {[%clk 0:00:18.9]} 51... Kb8 {[%clk 0:00:02.3]} 52.
Rxe8+ {[%clk 0:00:18.8]} 52... Ka7 {[%clk 0:00:03.2]} 53. Ra8+ {[%clk
0:00:19.6]} 53... Kxa8 {[%clk 0:00:03.3]} 54. e8=Q+ {[%clk 0:00:20.5]} 54... Ka7
{[%clk 0:00:04.1]} 55. Qc6 {[%clk 0:00:19.9]} 55... Nb6 {[%clk 0:00:04.5]} 56.
Qb7# {[%clk 0:00:19.9]} 1-0

[Event "*** SCC Grand Prix: Titled Tuesday Blitz"]
[Site "Chess.com"]
[Date "2020.09.08"]
[Round "4"]
[White "Infernal_XaM"]
[Black "Taron_Shagbazyan"]
[Result "1-0"]
[WhiteElo "2908"]
[BlackElo "2677"]
[TimeControl "180+1"]
[EndTime "10:40:49 PDT"]
[Termination "Infernal_XaM won by checkmate"]

1. d4 {[%clk 0:02:51.1]} 1... Nf6 {[%clk 0:02:58.8]} 2. c4 {[%clk 0:02:51]} 2...
e6 {[%clk 0:02:58.4]} 3. Nc3 {[%clk 0:02:50.3]} 3... Bb4 {[%clk 0:02:57.9]} 4.
e3 {[%clk 0:02:50.7]} 4... O-O {[%clk 0:02:56.8]} 5. Ne2 {[%clk 0:02:50.4]} 5...
d5 {[%clk 0:02:56.5]} 6. a3 {[%clk 0:02:47.8]} 6... Be7 {[%clk 0:02:55.2]} 7.
cxd5 {[%clk 0:02:47]} 7... exd5 {[%clk 0:02:55.2]} 8. g3 {[%clk 0:02:47.2]} 8...
c6 {[%clk 0:02:52.6]} 9. Bg2 {[%clk 0:02:47.2]} 9... a5 {[%clk 0:02:49.1]} 10.
O-O {[%clk 0:02:44.4]} 10... Na6 {[%clk 0:02:49.6]} 11. f3 {[%clk 0:02:34]}
11... c5 {[%clk 0:02:48.5]} 12. g4 {[%clk 0:02:29.2]} 12... cxd4 {[%clk
0:02:41.9]} 13. exd4 {[%clk 0:02:25.1]} 13... Nc7 {[%clk 0:02:36.3]} 14. g5
{[%clk 0:02:19.4]} 14... Nfe8 {[%clk 0:02:27.3]} 15. f4 {[%clk 0:02:14.7]} 15...
Kh8 {[%clk 0:01:42.2]} 16. Qd3 {[%clk 0:02:10.4]} 16... f6 {[%clk 0:01:41.1]}
17. g6 {[%clk 0:02:00.9]} 17... Nd6 {[%clk 0:01:34.6]} 18. f5 {[%clk 0:01:58]}
18... Bxf5 {[%clk 0:01:19.7]} 19. Rxf5 {[%clk 0:01:56.8]} 19... Nxf5 {[%clk
0:01:20.6]} 20. Qxf5 {[%clk 0:01:56.5]} 20... Qe8 {[%clk 0:01:16.2]} 21. Nf4
{[%clk 0:01:53.5]} 21... Bd6 {[%clk 0:01:12.2]} 22. Qh3 {[%clk 0:01:40.5]} 22...
h6 {[%clk 0:01:09.9]} 23. Bd2 {[%clk 0:01:24.1]} 23... Bxf4 {[%clk 0:01:06.3]}
24. Bxf4 {[%clk 0:01:23.6]} 24... Ne6 {[%clk 0:01:07]} 25. Bxh6 {[%clk
0:01:23.6]} 25... Qxg6 {[%clk 0:01:06.3]} 26. Be3+ {[%clk 0:01:23.6]} 26... Qh7
{[%clk 0:01:03.8]} 27. Qxe6 {[%clk 0:01:17.5]} 27... Rfe8 {[%clk 0:01:03.7]} 28.
Qg4 {[%clk 0:01:05.4]} 28... Rxe3 {[%clk 0:01:03.3]} 29. Nxd5 {[%clk 0:01:05.5]}
29... Rb3 {[%clk 0:00:55.2]} 30. Ne7 {[%clk 0:01:01.2]} 30... g5 {[%clk
0:00:41.5]} 31. Qe6 {[%clk 0:01:00.4]} 31... Rxb2 {[%clk 0:00:30.4]} 32. Qxf6+
{[%clk 0:00:57.9]} 32... Qg7 {[%clk 0:00:30.4]} 33. Qxg7+ {[%clk 0:00:42.5]}
33... Kxg7 {[%clk 0:00:31.3]} 34. Rd1 {[%clk 0:00:39.3]} 34... Re8 {[%clk
0:00:29.7]} 35. Nf5+ {[%clk 0:00:34.9]} 35... Kf6 {[%clk 0:00:30]} 36. Ng3
{[%clk 0:00:35]} 36... Rb3 {[%clk 0:00:27.4]} 37. a4 {[%clk 0:00:33.9]} 37...
Rb4 {[%clk 0:00:27.2]} 38. Ne4+ {[%clk 0:00:31.1]} 38... Kg6 {[%clk 0:00:27]}
39. Nd6 {[%clk 0:00:29.7]} 39... Re7 {[%clk 0:00:26]} 40. d5 {[%clk 0:00:20.4]}
40... Rxa4 {[%clk 0:00:25.9]} 41. Nc8 {[%clk 0:00:20.6]} 41... Rc7 {[%clk
0:00:24.9]} 42. Nb6 {[%clk 0:00:18.5]} 42... Rg4 {[%clk 0:00:12.5]} 43. h3
{[%clk 0:00:18.4]} 43... Rb4 {[%clk 0:00:07.4]} 44. d6 {[%clk 0:00:18.3]} 44...
Rf7 {[%clk 0:00:07.8]} 45. d7 {[%clk 0:00:17.7]} 45... Rf8 {[%clk 0:00:08.3]}
46. Nd5 {[%clk 0:00:17]} 46... Rb2 {[%clk 0:00:05.8]} 47. Nc7 {[%clk 0:00:15.6]}
47... Rd8 {[%clk 0:00:05.5]} 48. Ne6 {[%clk 0:00:15.8]} 48... Rxd7 {[%clk
0:00:06]} 49. Rxd7 {[%clk 0:00:15.7]} 49... b5 {[%clk 0:00:06.5]} 50. Nd4 {[%clk
0:00:11.4]} 50... a4 {[%clk 0:00:05.3]} 51. Rd6+ {[%clk 0:00:11.5]} 51... Kg7
{[%clk 0:00:04.6]} 52. Nf5+ {[%clk 0:00:10.5]} 52... Kf7 {[%clk 0:00:03.4]} 53.
Bd5+ {[%clk 0:00:10.6]} 53... Ke8 {[%clk 0:00:03.8]} 54. Be6 {[%clk 0:00:08.2]}
54... a3 {[%clk 0:00:03.2]} 55. Ra6 {[%clk 0:00:08.4]} 55... Re2 {[%clk
0:00:02.2]} 56. Ra8# {[%clk 0:00:08.3]} 1-0

[Event "*** SCC Grand Prix: Titled Tuesday Blitz"]
[Site "Chess.com"]
[Date "2020.09.08"]
[Round "4"]
[White "JoliyRoger"]
[Black "NikolaGry"]
[Result "1-0"]
[WhiteElo "2406"]
[BlackElo "2601"]
[TimeControl "180+1"]
[EndTime "10:40:50 PDT"]
[Termination "JoliyRoger won by checkmate"]

1. Nf3 {[%clk 0:03:00.9]} 1... c5 {[%clk 0:02:58.4]} 2. c4 {[%clk 0:03:01.2]}
2... b6 {[%clk 0:02:57.5]} 3. Nc3 {[%clk 0:03:01.6]} 3... Bb7 {[%clk 0:02:57.8]}
4. e3 {[%clk 0:03:02.5]} 4... e6 {[%clk 0:02:55.8]} 5. d4 {[%clk 0:02:52.9]}
5... cxd4 {[%clk 0:02:55.4]} 6. exd4 {[%clk 0:02:53.4]} 6... Nf6 {[%clk
0:02:55.6]} 7. Bd3 {[%clk 0:02:47.6]} 7... d6 {[%clk 0:02:55.3]} 8. O-O {[%clk
0:02:47.5]} 8... Be7 {[%clk 0:02:54.2]} 9. Qe2 {[%clk 0:02:46.4]} 9... O-O
{[%clk 0:02:53.3]} 10. b3 {[%clk 0:02:43.4]} 10... Nbd7 {[%clk 0:02:51.5]} 11.
Bb2 {[%clk 0:02:43.7]} 11... Rc8 {[%clk 0:02:50.8]} 12. Rad1 {[%clk 0:02:37.2]}
12... Re8 {[%clk 0:02:49.5]} 13. Rfe1 {[%clk 0:02:37.4]} 13... Qc7 {[%clk
0:02:45.9]} 14. h4 {[%clk 0:02:28.5]} 14... Qb8 {[%clk 0:02:41.3]} 15. Ng5
{[%clk 0:02:15]} 15... Nf8 {[%clk 0:02:40.5]} 16. h5 {[%clk 0:01:55.6]} 16... h6
{[%clk 0:02:29.3]} 17. Nge4 {[%clk 0:01:53.5]} 17... N8d7 {[%clk 0:02:17.8]} 18.
Ng3 {[%clk 0:01:42.8]} 18... d5 {[%clk 0:02:10.1]} 19. Nb1 {[%clk 0:01:05.6]}
19... Qa8 {[%clk 0:02:00.7]} 20. Qf1 {[%clk 0:00:50.7]} 20... a6 {[%clk
0:01:53.9]} 21. Nd2 {[%clk 0:00:47.6]} 21... Bd6 {[%clk 0:01:40.7]} 22. Bb1
{[%clk 0:00:33]} 22... Qb8 {[%clk 0:01:27.1]} 23. Qd3 {[%clk 0:00:30.9]} 23...
Nf8 {[%clk 0:01:23.7]} 24. a3 {[%clk 0:00:20.2]} 24... Bxg3 {[%clk 0:01:18.6]}
25. fxg3 {[%clk 0:00:19.8]} 25... Nxh5 {[%clk 0:01:18.8]} 26. Nf1 {[%clk
0:00:17.7]} 26... Nf6 {[%clk 0:01:16.8]} 27. Qe2 {[%clk 0:00:14.5]} 27... dxc4
{[%clk 0:01:06.8]} 28. bxc4 {[%clk 0:00:14]} 28... Qc7 {[%clk 0:01:04.9]} 29.
Bd3 {[%clk 0:00:14.3]} 29... N8h7 {[%clk 0:01:00.2]} 30. Bc1 {[%clk 0:00:14.6]}
30... Ng5 {[%clk 0:00:59.2]} 31. Bf4 {[%clk 0:00:14.7]} 31... Qe7 {[%clk
0:00:57.5]} 32. Be5 {[%clk 0:00:14.4]} 32... Rcd8 {[%clk 0:00:44.8]} 33. a4
{[%clk 0:00:12.3]} 33... Bc6 {[%clk 0:00:39.9]} 34. Bc2 {[%clk 0:00:11.8]} 34...
Nd7 {[%clk 0:00:36.1]} 35. Bf4 {[%clk 0:00:09.6]} 35... Nf8 {[%clk 0:00:30.4]}
36. Ne3 {[%clk 0:00:09.4]} 36... Ngh7 {[%clk 0:00:22.9]} 37. Ng4 {[%clk
0:00:09.3]} 37... f5 {[%clk 0:00:20.4]} 38. Ne5 {[%clk 0:00:09.2]} 38... Ba8
{[%clk 0:00:20.4]} 39. Bb3 {[%clk 0:00:08.8]} 39... g5 {[%clk 0:00:18.5]} 40.
Bc1 {[%clk 0:00:08.5]} 40... Kg7 {[%clk 0:00:18.8]} 41. Bb2 {[%clk 0:00:07.8]}
41... Nf6 {[%clk 0:00:19]} 42. d5 {[%clk 0:00:07.5]} 42... exd5 {[%clk
0:00:18.1]} 43. cxd5 {[%clk 0:00:08]} 43... N8h7 {[%clk 0:00:17.6]} 44. Qf2
{[%clk 0:00:07.1]} 44... f4 {[%clk 0:00:12.3]} 45. gxf4 {[%clk 0:00:06.6]} 45...
Bxd5 {[%clk 0:00:12.4]} 46. Bxd5 {[%clk 0:00:05]} 46... Rxd5 {[%clk 0:00:12.2]}
47. Rxd5 {[%clk 0:00:05.3]} 47... Nxd5 {[%clk 0:00:12.5]} 48. Nc6+ {[%clk
0:00:05.8]} 48... Kg6 {[%clk 0:00:10.3]} 49. Nxe7+ {[%clk 0:00:05.1]} 49... Nxe7
{[%clk 0:00:10.6]} 50. fxg5 {[%clk 0:00:05.1]} 50... Rf8 {[%clk 0:00:09.5]} 51.
Qc2+ {[%clk 0:00:06]} 51... Nf5 {[%clk 0:00:09.6]} 52. Re6+ {[%clk 0:00:06]}
52... Kh5 {[%clk 0:00:08.5]} 53. Bf6 {[%clk 0:00:06.2]} 53... hxg5 {[%clk
0:00:07.5]} 54. Qxf5 {[%clk 0:00:06.6]} 54... Rc8 {[%clk 0:00:05.2]} 55. Qxh7+
{[%clk 0:00:06.4]} 55... Kg4 {[%clk 0:00:05]} 56. Qh3+ {[%clk 0:00:07.3]} 56...
Kf4 {[%clk 0:00:04.6]} 57. Qf3# {[%clk 0:00:08.2]} 1-0

[Event "*** SCC Grand Prix: Titled Tuesday Blitz"]
[Site "Chess.com"]
[Date "2020.09.08"]
[Round "4"]
[White "Sankalp_Gupta2003"]
[Black "MustafayevFarid2004"]
[Result "0-1"]
[WhiteElo "2728"]
[BlackElo "2519"]
[TimeControl "180+1"]
[EndTime "10:40:51 PDT"]
[Termination "MustafayevFarid2004 won by resignation"]

1. e4 {[%clk 0:03:00.9]} 1... c6 {[%clk 0:02:57.4]} 2. Nf3 {[%clk 0:03:00.7]}
2... d5 {[%clk 0:02:57.6]} 3. Nc3 {[%clk 0:03:00.4]} 3... Bg4 {[%clk 0:02:57.6]}
4. Be2 {[%clk 0:03:00]} 4... e6 {[%clk 0:02:57.7]} 5. h3 {[%clk 0:03:00.2]} 5...
Bxf3 {[%clk 0:02:56.9]} 6. Bxf3 {[%clk 0:03:01.1]} 6... Nd7 {[%clk 0:02:57.5]}
7. d3 {[%clk 0:02:58.1]} 7... Ngf6 {[%clk 0:02:57.1]} 8. g3 {[%clk 0:02:57.3]}
8... Be7 {[%clk 0:02:55.3]} 9. Bg2 {[%clk 0:02:56.6]} 9... O-O {[%clk
0:02:55.3]} 10. O-O {[%clk 0:02:56.3]} 10... dxe4 {[%clk 0:02:45]} 11. dxe4
{[%clk 0:02:57.2]} 11... Nc5 {[%clk 0:02:39.7]} 12. Qe2 {[%clk 0:02:57.1]} 12...
e5 {[%clk 0:02:39.8]} 13. a4 {[%clk 0:02:56.9]} 13... Ne6 {[%clk 0:02:39.1]} 14.
Be3 {[%clk 0:02:37.3]} 14... Bc5 {[%clk 0:02:32.6]} 15. Rfd1 {[%clk 0:02:36.6]}
15... Qe7 {[%clk 0:02:27.8]} 16. Rd2 {[%clk 0:02:31]} 16... Bxe3 {[%clk
0:02:25.6]} 17. Qxe3 {[%clk 0:02:29]} 17... Nd4 {[%clk 0:02:25.9]} 18. Ne2
{[%clk 0:02:27.4]} 18... Nxe2+ {[%clk 0:02:19.5]} 19. Qxe2 {[%clk 0:02:28.3]}
19... Rfd8 {[%clk 0:02:19.3]} 20. Rad1 {[%clk 0:02:26.1]} 20... Rxd2 {[%clk
0:02:02.8]} 21. Qxd2 {[%clk 0:02:27]} 21... Kf8 {[%clk 0:01:46.5]} 22. Qc3
{[%clk 0:02:24.1]} 22... Ke8 {[%clk 0:01:39.7]} 23. b4 {[%clk 0:02:19.6]} 23...
Rd8 {[%clk 0:01:38.7]} 24. Rxd8+ {[%clk 0:02:19.2]} 24... Kxd8 {[%clk
0:01:39.6]} 25. a5 {[%clk 0:02:19.3]} 25... Qd6 {[%clk 0:01:32.9]} 26. Qe3
{[%clk 0:02:17.1]} 26... Qd4 {[%clk 0:01:10]} 27. Qg5 {[%clk 0:01:46]} 27... Ke7
{[%clk 0:00:59.8]} 28. Qxg7 {[%clk 0:01:03.7]} 28... Qxb4 {[%clk 0:00:57.4]} 29.
Qg5 {[%clk 0:00:54.3]} 29... Qxa5 {[%clk 0:00:56.1]} 30. f4 {[%clk 0:00:51.9]}
30... Qa1+ {[%clk 0:00:27.7]} 31. Kh2 {[%clk 0:00:49.3]} 31... Ke6 {[%clk
0:00:28]} 32. Qf5+ {[%clk 0:00:28.9]} 32... Ke7 {[%clk 0:00:28]} 33. fxe5 {[%clk
0:00:16.3]} 33... Nd7 {[%clk 0:00:28.1]} 34. Qg5+ {[%clk 0:00:13.7]} 34... Ke6
{[%clk 0:00:21.3]} 35. Qh6+ {[%clk 0:00:07]} 35... Kxe5 {[%clk 0:00:20.7]} 36.
Qxh7 {[%clk 0:00:06.6]} 36... Qa2 {[%clk 0:00:18.2]} 37. h4 {[%clk 0:00:03.2]}
37... Qe6 {[%clk 0:00:17.3]} 38. Qh5+ {[%clk 0:00:01.4]} 38... Kd6 {[%clk
0:00:17.1]} 39. Qg5 {[%clk 0:00:02.3]} 39... Qf6 {[%clk 0:00:16.1]} 40. Qd2+
{[%clk 0:00:02.5]} 40... Ke7 {[%clk 0:00:16.3]} 41. Qb4+ {[%clk 0:00:02.7]}
41... Qd6 {[%clk 0:00:15.3]} 42. Qxb7 {[%clk 0:00:03]} 42... a5 {[%clk
0:00:15.8]} 43. Qa7 {[%clk 0:00:03.1]} 43... Qc5 {[%clk 0:00:15.3]} 44. Qa8
{[%clk 0:00:02.7]} 44... Nf6 {[%clk 0:00:13.8]} 45. Kh3 {[%clk 0:00:02]} 45...
Qe5 {[%clk 0:00:12.7]} 46. Qb7+ {[%clk 0:00:02.1]} 46... Kf8 {[%clk 0:00:13.1]}
47. Qxc6 {[%clk 0:00:02.3]} 47... Kg7 {[%clk 0:00:06.2]} 48. Qc8 {[%clk
0:00:02.7]} 48... a4 {[%clk 0:00:05.1]} 49. Qa8 {[%clk 0:00:01.9]} 49... Qe6+
{[%clk 0:00:02.6]} 50. Kh2 {[%clk 0:00:02.2]} 50... Ng4+ {[%clk 0:00:03.5]} 51.
Kh1 {[%clk 0:00:02.8]} 51... Qc4 {[%clk 0:00:03.6]} 52. Qd5 {[%clk 0:00:02.3]}
52... Qxd5 {[%clk 0:00:03.5]} 53. exd5 {[%clk 0:00:03.2]} 53... a3 {[%clk
0:00:04.4]} 0-1